bitfinex-derivatives/quotes_BTCF0:USTF0_20250722
["timestamp","ask_amount","ask_price","bid_price","bid_amount"]
[1753195270990,1.14335125,118710.0,118700.0,0.96895375]
[1753195271187,1.2048328,118710.0,118700.0,0.80055305]
[1753195271497,1.2048328,118710.0,118700.0,0.77046]
[1753195271991,1.2048328,118710.0,118700.0,0.9388612]
[1753195272492,1.2068328,118710.0,118700.0,0.16958]
[1753195272894,1.2078328,118710.0,118700.0,0.3379807]
[1753195273095,1.2078328,118710.0,118700.0,0.3711907]
[1753195273490,1.2078328,118710.0,118700.0,0.4330307]
[1753195273793,1.1914928,118710.0,118700.0,0.4330307]
[1753195275505,1.0541028,118710.0,118700.0,0.4330307]
[1753195276691,1.0994128,118710.0,118700.0,0.4330307]
[1753195276892,1.1914928,118710.0,118700.0,0.4330307]
[1753195277096,0.6933028,118710.0,118700.0,0.7938307]
[1753195277297,0.203867,118710.0,118700.0,0.46312375]
[1753195277590,0.171387,118710.0,118700.0,0.7938307]
[1753195277895,0.003,118710.0,118700.0,0.82392375]
[1753195278096,0.003,118710.0,118700.0,1.24334955]
[1753195278301,0.001,118710.0,118700.0,0.82392375]
[1753195278800,0.26996945,118720.0,118710.0,0.1683866]
[1753195279001,0.18558195,118720.0,118710.0,1.3945766]
[1753195279198,0.18558085,118720.0,118710.0,1.3945766]
[1753195279707,0.01720845,118720.0,118710.0,1.3945766]
[1753195279894,0.01720845,118720.0,118710.0,1.43958271]
[1753195280095,0.2106599,118730.0,118720.0,0.2746824]
[1753195280295,0.1683701,118730.0,118720.0,0.82391236]
[1753195281101,0.68894021,118740.0,118730.0,0.3622482]
[1753195281308,0.68874021,118740.0,118730.0,1.0337082]
[1753195281604,0.26931441,118740.0,118730.0,1.3945082]
[1753195281806,0.68874021,118740.0,118730.0,1.3945082]
[1753195282409,0.70406021,118740.0,118730.0,1.3945082]
[1753195282906,0.70606021,118740.0,118730.0,1.3945082]
[1753195283202,0.6892758,118740.0,118730.0,1.3945082]
[1753195283391,0.69768641,118740.0,118730.0,1.3945082]
[1753195286112,0.23617261,118740.0,118730.0,1.3945082]
[1753195286315,0.61351131,118740.0,118730.0,1.3945082]
[1753195288219,0.4367458,118740.0,118730.0,1.3945082]
[1753195288413,0.006,118740.0,118730.0,1.3945082]
[1753195289721,0.174344,118740.0,118730.0,0.7937882]
[1753195289919,0.5937698,118740.0,118730.0,1.3942282]
[1753195290118,0.174344,118740.0,118730.0,1.3942282]
[1753195291115,0.006,118740.0,118730.0,1.3942282]
[1753195291317,0.006,118740.0,118730.0,1.42433816]
[1753195291520,0.174344,118740.0,118730.0,1.42433816]
[1753195292121,0.174344,118740.0,118730.0,1.3942282]
[1753195292321,0.5937698,118740.0,118730.0,1.3941082]
[1753195292829,0.174344,118740.0,118730.0,1.3941082]
[1753195293127,0.53192833,118740.0,118730.0,1.3941082]
[1753195294112,0.63441833,118740.0,118730.0,0.7937882]
[1753195294317,0.63441833,118740.0,118730.0,1.3940682]
[1753195294818,0.77180833,118740.0,118730.0,1.3940282]
[1753195295122,0.63441833,118740.0,118730.0,0.7937882]
[1753195295324,0.63441833,118740.0,118730.0,1.3940282]
[1753195295730,0.63441833,118740.0,118730.0,0.7937882]
[1753195296024,0.53192833,118740.0,118730.0,1.3940282]
[1753195297825,0.36358433,118740.0,118730.0,1.46914427]
[1753195298026,0.006,118740.0,118730.0,1.46914427]
[1753195298223,0.174344,118740.0,118730.0,1.46914427]
[1753195298419,0.174344,118740.0,118730.0,1.42413816]
[1753195298725,0.174344,118740.0,118730.0,1.46914427]
[1753195298921,0.006,118740.0,118730.0,1.46914427]
[1753195299116,0.006,118740.0,118730.0,0.86890427]
[1753195299322,0.0002,118750.0,118740.0,0.431304]
[1753195299522,0.59984023,118760.0,118750.0,0.4312898]
[1753195299721,0.71316299,118770.0,118750.0,1.29144203]
[1753195299921,0.67134299,118770.0,118760.0,0.7920757]
[1753195300225,0.72874299,118770.0,118760.0,0.4312757]
[1753195300419,0.86352299,118770.0,118760.0,0.4312757]
[1753195300626,0.86352299,118770.0,118760.0,0.7920757]
[1753195300816,0.25903086,118770.0,118760.0,1.3921557]
[1753195301019,0.58496519,118770.0,118760.0,1.3921557]
[1753195301216,0.82969801,118770.0,118760.0,1.0313557]
[1753195301814,0.84603801,118770.0,118760.0,0.4312757]
[1753195302016,0.84603801,118770.0,118760.0,0.26296]
[1753195302226,0.85303801,118770.0,118760.0,1.0313156]
[1753195302422,0.85303801,118770.0,118760.0,0.863]
[1753195302628,0.84603801,118770.0,118760.0,1.0313156]
[1753195302930,0.85203801,118770.0,118760.0,1.0313156]
[1753195303830,0.84803801,118770.0,118760.0,1.0313156]
[1753195304127,0.83304365,118770.0,118760.0,1.0313156]
[1753195304326,0.81670365,118770.0,118760.0,1.0313156]
[1753195304726,0.62432365,118770.0,118760.0,1.3921156]
[1753195306729,0.26673932,118770.0,118760.0,1.3921156]
[1753195306921,0.62432365,118770.0,118760.0,1.3921156]
[1753195308525,0.68192365,118770.0,118760.0,0.62376]
[1753195308725,0.81670365,118770.0,118760.0,1.0311557]
[1753195309326,0.81670365,118770.0,118750.0,0.21405965]
[1753195309327,0.2575657,118760.0,118750.0,0.21405965]
[1753195309521,0.2575657,118760.0,118750.0,0.83716965]
[1753195309522,1.13630436,118760.0,118750.0,0.83716965]
[1753195309727,0.77872003,118760.0,118750.0,1.00549945]
[1753195310118,0.67646003,118760.0,118750.0,1.00549945]
[1753195310323,0.62960003,118760.0,118750.0,1.00549945]
[1753195310932,0.76738003,118760.0,118750.0,1.00549945]
[1753195311525,0.76738003,118760.0,118750.0,0.85949945]
[1753195311826,0.68146003,118760.0,118750.0,1.45925945]
[1753195312733,0.005,118760.0,118750.0,1.83577441]
[1753195313630,0.005,118760.0,118750.0,1.47819008]
[1753195314626,0.005,118760.0,118750.0,1.83577441]
[1753195315723,0.003,118760.0,118750.0,1.83577441]
[1753195317431,0.003,118760.0,118750.0,1.84437471]
[1753195317631,0.0002,118770.0,118760.0,0.4079257]
[1753195317837,0.2105655,118780.0,118770.0,0.4312615]
[1753195318132,0.2103655,118780.0,118770.0,1.3915815]
[1753195318326,0.75398403,118790.0,118780.0,0.4312473]
[1753195318527,0.75378403,118790.0,118780.0,0.4312473]
[1753195319540,0.61301233,118790.0,118780.0,0.4312473]
[1753195319837,0.1712732,118790.0,118780.0,1.14963163]
[1753195320138,0.003,118790.0,118780.0,0.7920473]
[1753195320339,0.1712732,118790.0,118780.0,0.7920473]
[1753195320637,0.54130753,118790.0,118780.0,0.7920473]
[1753195321138,0.54230753,118790.0,118780.0,0.7920473]
[1753195321340,0.53930753,118790.0,118780.0,0.7920473]
[1753195321638,0.54030753,118790.0,118780.0,0.7920473]
[1753195322241,0.52785753,118790.0,118780.0,0.7920473]
[1753195322644,0.1702732,118790.0,118780.0,0.7920473]
[1753195323244,0.1702732,118790.0,118780.0,0.26296]
[1753195323245,1.12513753,118790.0,118780.0,0.26296]
[1753195323540,1.14447753,118790.0,118780.0,0.59936]
[1753195325344,1.2057785,118790.0,118780.0,0.59936]
[1753195326243,1.2057785,118790.0,118780.0,0.7676473]
[1753195326545,1.2057785,118790.0,118780.0,0.9026773]
[1753195326936,1.2057785,118790.0,118780.0,0.75774]
[1753195327743,1.2057785,118790.0,118780.0,0.73439]
[1753195327947,1.2057785,118790.0,118780.0,0.68899]
[1753195328242,1.2057785,118790.0,118780.0,0.68887]
[1753195328442,1.2057785,118790.0,118780.0,0.08963]
[1753195328642,1.2057785,118790.0,118780.0,0.68887]
[1753195329738,1.2057785,118790.0,118780.0,0.8571573]
[1753195329939,1.2057785,118790.0,118780.0,0.9294073]
[1753195330142,1.2057785,118790.0,118780.0,0.76112]
[1753195330447,1.2057785,118790.0,118780.0,0.9412473]
[1753195331551,0.8449785,118790.0,118780.0,0.9412473]
[1753195331744,1.2057785,118790.0,118780.0,0.9412473]
[1753195331945,0.8256385,118790.0,118780.0,1.0293973]
[1753195332145,0.1702732,118790.0,118780.0,1.0293973]
[1753195333047,0.1702732,118790.0,118780.0,1.3901973]
[1753195333357,0.002,118790.0,118780.0,1.3901973]
[1753195333552,0.1702732,118790.0,118780.0,1.3901973]
[1753195333848,0.002,118790.0,118780.0,1.3901973]
[1753195335649,0.1702731,118790.0,118780.0,1.3901973]
[1753195337652,0.002,118790.0,118780.0,1.3901973]
[1753195337853,0.1702731,118790.0,118780.0,1.3901973]
[1753195338246,0.002,118790.0,118780.0,1.3901973]
[1753195338447,0.1702731,118790.0,118780.0,1.3901973]
[1753195339755,0.1702731,118790.0,118780.0,1.42023935]
[1753195341847,0.1702731,118790.0,118780.0,0.72100935]
[1753195341848,0.2135831,118790.0,118780.0,0.72100935]
[1753195342044,0.8470884,118790.0,118780.0,0.9408873]
[1753195342250,0.8470884,118790.0,118780.0,0.80494]
[1753195342458,0.8470884,118790.0,118780.0,1.0290373]
[1753195342650,1.2078884,118790.0,118780.0,0.86075]
[1753195343751,1.2078884,118790.0,118780.0,1.0290373]
[1753195343958,0.8470884,118790.0,118780.0,1.0290373]
[1753195344461,1.2078884,118790.0,118780.0,0.86075]
[1753195345358,1.2078884,118790.0,118780.0,0.76076]
[1753195345658,0.4262173,118780.0,118770.0,0.20457205]
[1753195345845,1.2059026,118780.0,118770.0,0.17453]
[1753195346048,1.2059026,118780.0,118770.0,0.77333]
[1753195346254,1.2059026,118780.0,118770.0,0.97167345]
[1753195346452,0.8451026,118780.0,118770.0,1.02748345]
[1753195346653,0.8451026,118780.0,118770.0,1.05982345]
[1753195347562,0.8257626,118780.0,118770.0,1.05982345]
[1753195347954,0.8267626,118780.0,118770.0,1.05982345]
[1753195348753,0.8267626,118780.0,118770.0,0.89152205]
[1753195349358,0.8461026,118780.0,118770.0,1.05982345]
[1753195349759,0.8461026,118780.0,118770.0,0.89152205]
[1753195350060,0.8461026,118780.0,118770.0,1.05982345]
[1753195350559,0.8267626,118780.0,118770.0,1.05982345]
[1753195350956,1.1875626,118780.0,118770.0,1.05982345]
[1753195351266,1.2069026,118780.0,118770.0,0.86148]
[1753195351458,0.8461026,118780.0,118770.0,1.0297814]
[1753195351762,1.2069026,118780.0,118770.0,0.89152205]
[1753195353153,1.14547995,118780.0,118770.0,0.89152205]
[1753195353967,0.7880173,118780.0,118770.0,1.05982345]
[1753195354166,1.14547995,118780.0,118770.0,1.05982345]
[1753195354467,1.12613995,118780.0,118770.0,1.05982345]
[1753195355465,0.76533995,118780.0,118770.0,1.05982345]
[1753195355662,0.2125973,118780.0,118770.0,1.05982345]
[1753195355864,0.52674995,118780.0,118770.0,1.42062345]
[1753195356055,0.1692873,118780.0,118770.0,1.7780861]
[1753195356266,0.1692873,118780.0,118770.0,1.42065803]
[1753195356561,0.52674995,118780.0,118770.0,1.42065803]
[1753195358271,0.1692873,118780.0,118770.0,1.42065803]
[1753195358465,0.52674995,118780.0,118770.0,1.42065803]
[1753195363272,0.52674995,118780.0,118770.0,1.77812068]
[1753195363273,0.1692873,118780.0,118770.0,1.77812068]
[1753195363682,0.1692873,118780.0,118770.0,1.42065803]
[1753195364180,0.52674995,118780.0,118770.0,1.42065803]
[1753195364782,0.52674995,118780.0,118770.0,1.46572111]
[1753195366777,0.52674995,118780.0,118770.0,1.46524111]
[1753195367282,0.52674995,118780.0,118770.0,1.46520111]
[1753195367583,0.52674995,118780.0,118770.0,1.43512448]
[1753195368085,0.1692873,118780.0,118770.0,1.43512448]
[1753195368281,0.52674995,118780.0,118770.0,0.83684448]
[1753195368778,0.52674995,118780.0,118770.0,1.43508448]
[1753195369379,0.1692873,118780.0,118770.0,1.43508448]
[1753195369576,0.52674995,118780.0,118770.0,1.43508448]
[1753195370173,0.001,118780.0,118770.0,1.43508448]
[1753195370377,0.1684776,118790.0,118780.0,0.4273673]
[1753195370579,0.1682776,118790.0,118780.0,0.81825321]
[1753195370980,0.61865434,118800.0,118790.0,0.239133]
[1753195371181,0.61845434,118800.0,118790.0,1.355753]
[1753195373387,0.62145434,118800.0,118790.0,1.355753]
[1753195373588,0.62345434,118800.0,118790.0,1.355753]
[1753195373888,0.58138654,118800.0,118790.0,1.355753]
[1753195374487,0.53931984,118800.0,118790.0,1.355753]
[1753195374684,0.005,118800.0,118790.0,1.38583891]
[1753195374883,0.63141155,118800.0,118790.0,1.05543901]
[1753195375279,0.76692155,118800.0,118790.0,1.05543901]
[1753195375792,1.5045242,118800.0,118790.0,0.85708]
[1753195375983,1.5015242,118800.0,118790.0,0.85808]
[1753195376184,1.4995242,118800.0,118790.0,0.59896]
[1753195376388,1.4995242,118800.0,118790.0,0.001]
[1753195376592,1.9178842,118800.0,118790.0,0.001]
[1753195376982,1.92622068,118800.0,118790.0,0.001]
[1753195377188,1.50886068,118800.0,118790.0,0.001]
[1753195377885,1.50786068,118800.0,118790.0,0.001]
[1753195378091,1.50986068,118800.0,118790.0,0.001]
[1753195379298,0.4238131,118790.0,118780.0,0.28916591]
[1753195379492,1.14207575,118790.0,118780.0,0.19966591]
[1753195379792,1.14207575,118790.0,118780.0,0.15766]
[1753195380095,1.14207575,118790.0,118780.0,0.18774591]
[1753195380294,1.14207575,118790.0,118780.0,0.11792591]
[1753195380596,0.3351272,118780.0,118770.0,0.03008591]
[1753195380893,1.65126985,118780.0,118770.0,0.03008591]
[1753195381091,0.3351414,118770.0,118760.0,0.38461658]
[1753195381395,0.74570569,118770.0,118760.0,0.38461658]
[1753195382401,0.74570569,118770.0,118760.0,1.07029658]
[1753195382696,0.74570569,118770.0,118760.0,1.07129658]
[1753195383697,0.3267414,118770.0,118760.0,1.0262335]
[1753195383885,0.3133114,118770.0,118760.0,1.3870335]
[1753195384090,0.85869499,118780.0,118770.0,0.2697214]
[1753195384397,0.85849499,118780.0,118770.0,0.47250991]
[1753195384596,1.21929499,118780.0,118770.0,0.47250991]
[1753195384896,0.87192499,118780.0,118770.0,0.47250991]
[1753195385289,1.23272499,118780.0,118770.0,0.47250991]
[1753195385495,0.87192499,118780.0,118770.0,0.47250991]
[1753195385691,1.23372499,118780.0,118770.0,0.47250991]
[1753195385892,1.23372499,118780.0,118770.0,0.30420851]
[1753195386800,1.23372499,118780.0,118770.0,0.47250991]
[1753195387094,0.87292499,118780.0,118770.0,0.47250991]
[1753195387699,0.87292499,118780.0,118770.0,0.4273814]
[1753195389598,0.4539607,118780.0,118770.0,0.4273814]
[1753195389799,0.87292499,118780.0,118770.0,0.4273814]
[1753195390699,0.78877609,118780.0,118770.0,0.4273814]
[1753195390895,0.78877609,118780.0,118770.0,0.25908]
[1753195391198,1.14957609,118780.0,118770.0,0.25908]
[1753195391500,0.78877609,118780.0,118770.0,0.4273815]
[1753195392093,0.78877609,118780.0,118770.0,0.7881815]
[1753195392297,0.78877609,118780.0,118770.0,0.4273815]
[1753195394497,1.14957609,118780.0,118770.0,0.4273815]
[1753195394996,0.78877609,118780.0,118770.0,0.4273815]
[1753195395198,1.14957609,118780.0,118770.0,0.4273815]
[1753195396000,0.78877609,118780.0,118770.0,0.4273815]
[1753195396201,1.14957609,118780.0,118770.0,0.4273815]
[1753195396605,1.14957609,118780.0,118770.0,0.25908]
[1753195396795,1.15797609,118780.0,118770.0,0.8566]
[1753195397801,1.15797609,118780.0,118770.0,0.06982]
[1753195398002,1.15797609,118780.0,118770.0,0.66726]
[1753195399796,1.15797609,118780.0,118770.0,0.712]
[1753195400003,1.15797609,118780.0,118770.0,1.0243215]
[1753195400303,1.15797609,118780.0,118770.0,0.85602]
[1753195401206,1.09648722,118780.0,118770.0,0.85602]
[1753195402604,1.09648722,118780.0,118770.0,0.712]
[1753195403299,1.09648722,118780.0,118770.0,0.79869]
[1753195404203,1.09648722,118780.0,118770.0,0.712]
[1753195405398,1.09648722,118780.0,118770.0,0.04722]
[1753195405604,0.3346215,118770.0,118760.0,0.6676]
[1753195405803,1.05289692,118770.0,118760.0,0.6676]
[1753195405998,1.41037234,118770.0,118760.0,0.04724]
[1753195406405,1.05289692,118770.0,118760.0,0.04724]
[1753195406606,1.05289692,118770.0,118760.0,0.0704]
[1753195407105,1.41037234,118770.0,118760.0,0.0704]
[1753195407306,1.41037234,118770.0,118760.0,0.0714]
[1753195408006,1.05289692,118770.0,118760.0,0.0714]
[1753195410006,1.41037234,118770.0,118760.0,0.0714]
[1753195411109,1.41037234,118770.0,118760.0,0.04824]
[1753195411307,1.41037234,118770.0,118760.0,0.001]
[1753195412106,1.41037234,118770.0,118760.0,0.04824]
[1753195412301,1.41037234,118770.0,118760.0,0.09298]
[1753195412502,1.04449692,118770.0,118760.0,1.0255156]
[1753195413207,0.68369692,118770.0,118760.0,1.0255156]
[1753195413712,0.67026692,118770.0,118760.0,1.0255156]
[1753195413909,0.58091692,118770.0,118760.0,1.3863156]
[1753195414109,0.58091692,118770.0,118760.0,1.0255156]
[1753195414308,0.58091692,118770.0,118760.0,1.3863156]
[1753195414612,0.58191692,118770.0,118760.0,1.3863156]
[1753195415016,0.2244415,118770.0,118760.0,1.3863156]
[1753195415315,0.52577692,118770.0,118760.0,1.3863156]
[1753195415722,0.52577692,118770.0,118760.0,1.41639831]
[1753195416106,0.1683015,118770.0,118760.0,1.41639831]
[1753195418115,0.52577692,118770.0,118760.0,1.41639831]
[1753195418418,0.48389792,118780.0,118770.0,0.1683015]
[1753195418613,0.48389792,118780.0,118770.0,0.7837315]
[1753195418614,0.294524,118780.0,118770.0,0.7837315]
[1753195418918,0.60992452,118780.0,118770.0,0.7837315]
[1753195419114,0.2103743,118780.0,118770.0,0.7837315]
[1753195419419,0.1683015,118780.0,118770.0,1.17128963]
[1753195420017,0.62690107,118790.0,118780.0,0.4229173]
[1753195420320,0.62670107,118790.0,118780.0,1.0196773]
[1753195420519,0.62670107,118790.0,118780.0,1.41056001]
[1753195421513,0.62670107,118790.0,118780.0,1.3804773]
[1753195422221,0.62670107,118790.0,118780.0,1.3814773]
[1753195422821,0.62670107,118790.0,118780.0,1.3834773]
[1753195423919,1.12528107,118790.0,118780.0,0.85423]
[1753195424125,0.77791107,118790.0,118780.0,1.0225173]
[1753195424620,0.77791107,118790.0,118780.0,1.3833173]
[1753195424821,0.77791107,118790.0,118780.0,1.0225173]
[1753195425122,0.77791107,118790.0,118780.0,1.3833173]
[1753195425321,0.77791107,118790.0,118780.0,1.0225173]
[1753195425523,0.0002,118800.0,118790.0,0.4116231]
[1753195425824,0.0001,118830.0,118820.0,0.4228606]
[1753195426031,0.2486565,118830.0,118820.0,1.3801806]
[1753195426221,0.2486565,118830.0,118820.0,0.7836606]
[1753195426417,0.66357192,118830.0,118820.0,1.3801806]
[1753195426731,0.67700192,118830.0,118820.0,1.0193806]
[1753195427027,0.68000192,118830.0,118820.0,1.0193806]
[1753195427219,0.3225265,118830.0,118820.0,1.0193806]
[1753195427631,0.68000192,118830.0,118820.0,1.0193806]
[1753195428029,0.68000192,118830.0,118820.0,1.08820037]
[1753195428622,0.50998521,118830.0,118820.0,1.44900037]
[1753195428827,0.01472979,118830.0,118820.0,1.44900037]
[1753195429030,0.01472979,118830.0,118820.0,1.80647579]
[1753195429225,0.0061,118830.0,118820.0,1.80647579]
[1753195429428,0.0061,118830.0,118820.0,1.8673225]
[1753195429628,0.0061,118830.0,118820.0,1.44900037]
[1753195430124,0.0031,118830.0,118820.0,1.44900037]
[1753195431627,0.0001,118830.0,118820.0,1.45000037]
[1753195431818,0.03003868,118840.0,118830.0,0.1682165]
[1753195432025,0.03003868,118840.0,118830.0,0.7836465]
[1753195432927,0.19824098,118840.0,118830.0,0.7836465]
[1753195433128,0.03003868,118840.0,118830.0,1.20196863]
[1753195433329,0.03103868,118840.0,118830.0,1.20196863]
[1753195433724,0.014,118840.0,118830.0,1.20196863]
[1753195434231,0.1822023,118840.0,118830.0,0.7836465]
[1753195434428,0.1822023,118840.0,118830.0,1.3799265]
[1753195434730,0.3199823,118840.0,118830.0,1.0191265]
[1753195434929,0.3199823,118840.0,118830.0,1.3799265]
[1753195435132,0.3199823,118840.0,118830.0,0.7836465]
[1753195435623,0.73830443,118840.0,118830.0,1.3798465]
[1753195435825,0.73830443,118840.0,118830.0,0.61543]
[1753195436026,0.75173443,118840.0,118830.0,1.21163]
[1753195436234,0.75173443,118840.0,118830.0,1.3798465]
[1753195436628,0.3334123,118840.0,118830.0,1.3798465]
[1753195436927,0.3334123,118840.0,118830.0,1.21163]
[1753195437129,0.3334123,118840.0,118830.0,1.3798465]
[1753195437329,0.75173443,118840.0,118830.0,1.3798465]
[1753195439135,0.3334123,118840.0,118830.0,0.7836465]
[1753195439436,0.3334123,118840.0,118830.0,1.3797665]
[1753195439637,0.3334123,118840.0,118830.0,0.7836465]
[1753195440035,0.3334123,118840.0,118830.0,1.3797665]
[1753195440237,0.3334123,118840.0,118830.0,1.21155]
[1753195440436,0.75173443,118840.0,118830.0,0.61543]
[1753195440735,0.75173443,118840.0,118830.0,0.85075]
[1753195441227,0.75173443,118840.0,118830.0,1.0189665]
[1753195441431,0.75173443,118840.0,118830.0,0.85075]
[1753195441631,0.75173443,118840.0,118830.0,1.0189665]
[1753195442032,0.3334123,118840.0,118830.0,1.0189665]
[1753195442337,0.3334123,118840.0,118830.0,0.85075]
[1753195442526,0.3334123,118840.0,118830.0,1.0189665]
[1753195442734,0.3199823,118840.0,118830.0,1.3797665]
[1753195443538,0.3334123,118840.0,118830.0,1.3797665]
[1753195443838,0.3334123,118840.0,118830.0,1.0188865]
[1753195444544,0.75173443,118840.0,118830.0,1.0188865]
[1753195445739,0.75173443,118840.0,118830.0,1.3796865]
[1753195446635,0.1822023,118840.0,118830.0,1.3796865]
[1753195447343,0.3199823,118840.0,118830.0,1.3796865]
[1753195448937,0.2396423,118840.0,118830.0,1.3796865]
[1753195449639,0.1822023,118840.0,118830.0,1.3796865]
[1753195450043,0.75427443,118840.0,118830.0,0.7836465]
[1753195450243,0.75427443,118840.0,118830.0,1.3795265]
[1753195450737,0.75427443,118840.0,118830.0,1.0187265]
[1753195450937,0.75427443,118840.0,118830.0,1.3795265]
[1753195451244,0.69296468,118840.0,118830.0,1.0187265]
[1753195451845,0.3359523,118840.0,118830.0,0.4228465]
[1753195452045,0.69296468,118840.0,118830.0,0.4228465]
[1753195452343,0.69296468,118840.0,118830.0,1.0186865]
[1753195452733,0.69296468,118840.0,118830.0,0.4228465]
[1753195452931,0.69296468,118840.0,118830.0,1.3794865]
[1753195453134,0.2357223,118840.0,118830.0,1.43200258]
[1753195453342,0.1822023,118840.0,118830.0,1.43201872]
[1753195453541,0.014,118840.0,118830.0,1.40956921]
[1753195453840,0.014,118840.0,118830.0,1.76658159]
[1753195454348,0.1822023,118840.0,118830.0,1.76654159]
[1753195454546,0.1822023,118840.0,118830.0,1.40952921]
[1753195460649,0.1822023,118840.0,118830.0,0.81372921]
[1753195460850,0.1822023,118840.0,118830.0,1.40936921]
[1753195461045,0.014,118840.0,118830.0,1.40936921]
[1753195461442,0.014,118840.0,118830.0,1.82768354]
[1753195461646,0.1683882,118850.0,118840.0,0.4232423]
[1753195461842,0.0002,118860.0,118850.0,0.4232282]
[1753195462048,0.3392566,118870.0,118860.0,0.400234]
[1753195462247,0.41427569,118870.0,118860.0,0.423214]
[1753195462647,0.17642899,118870.0,118860.0,0.423214]
[1753195463050,0.17642899,118870.0,118860.0,0.784014]
[1753195463356,0.17942899,118870.0,118860.0,0.784014]
[1753195463654,0.31974899,118870.0,118860.0,0.784014]
[1753195464051,0.15158909,118870.0,118860.0,0.784014]
[1753195464247,0.01126909,118870.0,118860.0,0.784014]
[1753195464654,0.0171657,118880.0,118870.0,0.4232004]
[1753195464853,0.0169657,118880.0,118870.0,1.3795604]
[1753195465052,0.02537057,118880.0,118870.0,1.79787473]
[1753195465256,0.0169657,118880.0,118870.0,1.79787473]
[1753195465652,0.0169657,118880.0,118870.0,1.3795604]
[1753195465858,0.0199657,118880.0,118870.0,1.3795604]
[1753195466258,0.0219657,118880.0,118870.0,1.3795604]
[1753195466957,0.1901114,118880.0,118870.0,0.7840004]
[1753195467159,0.3304314,118880.0,118870.0,1.3794804]
[1753195467756,0.2436314,118880.0,118870.0,1.3794804]
[1753195468161,0.0219657,118880.0,118870.0,1.40180155]
[1753195468556,0.0219657,118880.0,118870.0,0.80640155]
[1753195468763,0.0219657,118880.0,118870.0,1.40180155]
[1753195468959,0.03044886,118880.0,118870.0,1.40180155]
[1753195469158,0.03044886,118880.0,118870.0,1.40176155]
[1753195469360,0.03044886,118880.0,118870.0,0.80640155]
[1753195469660,0.03044886,118880.0,118870.0,1.40176155]
[1753195469855,0.03044886,118880.0,118870.0,0.80640155]
[1753195470059,0.03044886,118880.0,118870.0,1.40176155]
[1753195470262,0.19859456,118880.0,118870.0,1.40176155]
[1753195470462,0.03044886,118880.0,118870.0,1.40176155]
[1753195470662,0.03044886,118880.0,118870.0,1.3793604]
[1753195470864,0.19859456,118880.0,118870.0,1.3793604]
[1753195471068,0.03044886,118880.0,118870.0,1.3793604]
[1753195471264,0.0219657,118880.0,118870.0,1.82007588]
[1753195471458,0.1683316,118890.0,118880.0,0.4002057]
[1753195471763,0.1681316,118890.0,118880.0,1.20230003]
[1753195472152,0.40620142,118900.0,118890.0,0.2555016]
[1753195472356,0.3975132,118900.0,118890.0,1.3792516]
[1753195472552,0.3975132,118900.0,118890.0,1.3762516]
[1753195473461,0.3995132,118900.0,118890.0,1.3762516]
[1753195474167,1.19205753,118900.0,118890.0,1.0183716]
[1753195474367,1.19205753,118900.0,118890.0,1.08623828]
[1753195474568,0.81782753,118900.0,118890.0,1.08623828]
[1753195475266,0.83125753,118900.0,118890.0,1.08623828]
[1753195475669,0.83125753,118900.0,118890.0,1.44703828]
[1753195475867,0.83125753,118900.0,118890.0,1.08623828]
[1753195476563,0.839773,118900.0,118890.0,0.32290668]
[1753195476756,0.839773,118900.0,118890.0,1.08615828]
[1753195477055,0.26770867,118900.0,118890.0,0.49103828]
[1753195477256,0.77813538,118900.0,118890.0,1.08611828]
[1753195478268,0.77813538,118900.0,118890.0,0.49103828]
[1753195478469,0.77813538,118900.0,118890.0,1.08611828]
[1753195479564,0.77813538,118900.0,118890.0,1.08607828]
[1753195479766,0.42145867,118900.0,118890.0,1.08607828]
[1753195479968,0.77813538,118900.0,118890.0,1.08607828]
[1753195480270,0.42145867,118900.0,118890.0,1.08607828]
[1753195480571,0.77813538,118900.0,118890.0,1.08607828]
[1753195481372,0.77813538,118900.0,118890.0,1.08603828]
[1753195482975,0.77813538,118900.0,118890.0,0.49103828]
[1753195483163,0.77813538,118900.0,118890.0,1.08595828]
[1753195484975,1.13893538,118900.0,118890.0,0.91782668]
[1753195485171,1.14733538,118900.0,118890.0,0.18168668]
[1753195485374,1.14733538,118900.0,118890.0,0.74517668]
[1753195486074,1.14733538,118900.0,118890.0,0.15029668]
[1753195486274,1.14733538,118900.0,118890.0,0.74513668]
[1753195486870,1.14733538,118900.0,118890.0,0.82357668]
[1753195487068,1.14733538,118900.0,118890.0,0.85660668]
[1753195487271,1.14733538,118900.0,118890.0,0.7103]
[1753195487472,1.14733538,118900.0,118890.0,0.07017]
[1753195487672,0.3127916,118890.0,118880.0,0.09675115]
[1753195487877,1.41257325,118890.0,118880.0,0.0495]
[1753195488381,1.05589654,118890.0,118880.0,0.07435]
[1753195490070,1.05589654,118890.0,118880.0,0.07535]
[1753195490775,1.05589654,118890.0,118880.0,0.12018]
[1753195490976,1.05589654,118890.0,118880.0,0.25218]
[1753195492978,1.05589654,118890.0,118880.0,0.12018]
[1753195493783,1.05589654,118890.0,118880.0,0.07535]
[1753195493986,1.83080525,118890.0,118880.0,0.001]
[1753195494172,0.3212057,118880.0,118870.0,0.08966397]
[1753195494377,0.3212199,118870.0,118860.0,0.10443271]
[1753195494577,1.63329661,118870.0,118860.0,0.07958271]
[1753195495574,1.63329661,118870.0,118860.0,0.0495]
[1753195496479,1.63329661,118870.0,118860.0,0.11767515]
[1753195496679,1.63329661,118870.0,118860.0,0.12067515]
[1753195496874,1.8186811,118870.0,118860.0,0.07117515]
[1753195497084,0.2339641,118860.0,118850.0,0.0495]
[1753195497287,1.03871081,118860.0,118850.0,0.0495]
[1753195497880,1.03871081,118860.0,118850.0,0.19762]
[1753195498286,1.03871081,118860.0,118850.0,0.25818]
[1753195498584,1.03031081,118860.0,118850.0,0.25818]
[1753195498886,1.03031081,118860.0,118850.0,0.4263682]
[1753195499386,1.03031081,118860.0,118850.0,0.25818]
[1753195499781,1.03871081,118860.0,118850.0,0.25818]
[1753195500380,1.03871081,118860.0,118850.0,0.32658048]
[1753195500381,1.03031081,118860.0,118850.0,0.32658048]
[1753195500787,1.03031081,118860.0,118850.0,0.49476858]
[1753195500983,0.3128341,118860.0,118850.0,0.49476858]
[1753195501287,0.66951081,118860.0,118850.0,0.49476858]
[1753195501480,0.24607378,118870.0,118860.0,0.394504]
[1753195501685,0.77072049,118870.0,118860.0,1.013874]
[1753195501888,0.59433519,118870.0,118860.0,1.013874]
[1753195502085,0.01712848,118870.0,118860.0,1.73135071]
[1753195503391,0.0002,118880.0,118870.0,0.4193399]
[1753195503591,0.26963913,118890.0,118880.0,0.3944757]
[1753195503792,0.26943913,118890.0,118880.0,1.3745657]
[1753195504182,0.22740273,118890.0,118880.0,1.73124241]
[1753195504384,0.01722823,118890.0,118880.0,1.73124241]
[1753195504592,0.18535983,118890.0,118880.0,1.73124241]
[1753195505183,0.18535983,118890.0,118880.0,1.3745657]
[1753195505587,0.01722823,118890.0,118880.0,1.3745657]